bitfinex-derivatives/quotes_ETHF0:USTF0_20250701
["timestamp","ask_amount","ask_price","bid_price","bid_amount"]
[1751394986242,1.51982,2424.1,2424.0,0.82482]
[1751394986442,2.45256558,2424.1,2424.0,0.82482]
[1751394986643,0.82485,2424.0,2423.9,0.82482]
[1751394988049,0.82485,2423.9,2423.8,4.5842707]
[1751394992547,0.82485,2424.0,2423.9,0.82482]
[1751394996150,0.82495,2423.8,2423.7,0.82489]
[1751394998949,0.82495,2423.8,2423.5,3.7143007]
[1751394999155,0.82499,2423.5,2423.4,0.82498]
[1751394999454,0.82499,2423.5,2423.4,3.29907722]
[1751394999650,0.82498,2423.6,2423.5,0.82496]
[1751394999851,1.48114,2423.7,2423.6,0.82496]
[1751395000749,0.6562,2423.7,2423.6,0.82496]
[1751395000948,1.48112,2423.7,2423.6,1.51336]
[1751395001149,0.6562,2423.7,2423.6,1.51336]
[1751395001754,1.59419269,2423.7,2423.6,1.51336]
[1751395002151,0.93799269,2423.7,2423.6,1.51336]
[1751395002355,0.93799269,2423.7,2423.6,2.93746]
[1751395002555,0.82489,2423.8,2423.7,0.82492]
[1751395002749,1.76354283,2423.8,2423.7,3.8792207]
[1751395003956,0.93865283,2423.8,2423.7,3.8792207]
[1751395008359,0.93865283,2423.8,2423.7,5.2608207]
[1751395010160,0.93865283,2423.8,2423.7,3.8792207]
[1751395010361,1.76354283,2423.8,2423.7,3.8792207]
[1751395010763,0.93865283,2423.8,2423.7,3.8792207]
[1751395011663,2.25645,2424.0,2423.9,0.82485]
[1751395011861,3.19555087,2424.0,2423.9,0.82485]
[1751395012464,0.82489,2423.9,2423.8,0.82486]
[1751395012658,1.76399087,2423.9,2423.8,0.82486]
[1751395012866,1.76399087,2423.9,2423.8,0.82489]
[1751395013662,3.18249087,2423.9,2423.8,0.82489]
[1751395018164,0.93910087,2423.9,2423.8,3.8791907]
[1751395018872,0.82483,2424.0,2423.9,0.82485]
[1751395019170,0.82485,2424.0,2423.9,0.82483]
[1751395019372,1.76389161,2424.0,2423.9,0.82483]
[1751395019669,1.76389161,2424.0,2423.7,0.8249]
[1751395019670,0.82492,2423.8,2423.7,0.8249]
[1751395019873,0.82492,2423.7,2423.6,3.29902722]
[1751395020171,1.48382,2423.7,2423.6,3.29902722]
[1751395020774,0.82496,2423.6,2423.5,3.29905722]
[1751395021972,0.82501,2423.5,2423.4,0.825]
[1751395023575,0.82502,2423.4,2423.3,3.29911722]
[1751395023868,0.82506,2423.3,2423.2,2.47409722]
[1751395024173,5.9265607,2423.3,2423.2,2.47409722]
[1751395024672,0.82516,2423.0,2422.9,2.47409722]
[1751395025064,0.82519,2422.9,2422.8,3.29929722]
[1751395025271,1.53659,2422.9,2422.8,3.29929722]
[1751395025970,1.53659,2422.9,2422.8,0.8252]
[1751395026171,0.82523,2422.8,2422.7,0.82524]
[1751395026375,1.53662,2422.9,2422.8,0.82523]
[1751395026575,1.53659,2422.9,2422.8,0.82523]
[1751395027776,0.82526,2422.8,2422.7,0.82524]
[1751395027971,1.53661,2422.9,2422.8,0.82523]
[1751395028372,0.7114,2422.9,2422.8,0.82523]
[1751395028769,1.53659,2422.9,2422.8,0.82523]
[1751395028971,0.82523,2422.8,2422.7,3.8795407]
[1751395029172,0.82523,2422.8,2422.7,3.0543007]
[1751395029372,0.82523,2422.8,2422.7,3.8795607]
[1751395029574,0.82523,2422.8,2422.7,3.0543007]
[1751395029775,0.82523,2422.8,2422.7,0.82526]
[1751395030078,1.53662,2422.9,2422.8,0.82523]
[1751395030277,0.7114,2422.9,2422.8,0.82523]
[1751395030878,1.53659,2422.9,2422.8,0.82523]
[1751395031880,0.7114,2422.9,2422.8,0.82523]
[1751395032278,1.53659,2422.9,2422.8,0.82523]
[1751395032777,0.82523,2422.8,2422.7,3.8795407]
[1751395033379,0.82523,2422.8,2422.7,0.82524]
[1751395033580,1.53662,2422.9,2422.8,0.82523]
[1751395034077,0.7114,2422.9,2422.8,0.82523]
[1751395034384,1.53659,2422.9,2422.8,0.82523]
[1751395034687,0.7114,2422.9,2422.8,0.82523]
[1751395034875,0.8251,2423.2,2422.8,3.0543007]
[1751395035183,0.82509,2423.3,2423.2,0.82508]
[1751395035383,2.7991,2423.4,2423.0,3.0543007]
[1751395035584,1.76121654,2423.3,2423.2,0.82509]
[1751395037186,3.14851654,2423.3,2423.2,0.82509]
[1751395039279,1.76121654,2423.3,2423.2,0.82509]
[1751395039683,0.82508,2423.3,2423.2,0.82509]
[1751395043594,11.657,2423.7,2423.5,0.82496]
[1751395043782,0.93667476,2423.6,2423.5,0.82496]
[1751395043981,0.82478,2424.2,2424.1,0.82476]
[1751395044185,0.82481,2424.1,2424.0,0.8248]
[1751395044381,1.76152473,2424.1,2424.0,0.8248]
[1751395044983,0.82478,2424.2,2424.1,0.82475]
[1751395045187,1.7618107,2424.2,2424.1,0.82475]
[1751395046192,1.7618107,2424.2,2424.1,0.82479]
[1751395046387,0.82481,2424.1,2424.0,0.82479]
[1751395047594,4.3994007,2424.3,2424.1,0.82475]
[1751395047595,0.82477,2424.2,2424.1,0.82475]
[1751395048298,0.82482,2424.1,2424.0,0.8248]
[1751395054486,0.82482,2424.0,2423.9,1.52003]
[1751395055393,0.82485,2423.9,2423.8,0.82486]
[1751395056394,0.82484,2424.0,2423.9,0.82482]
[1751395059903,0.82489,2423.9,2423.8,0.82486]
[1751395060198,1.53539,2423.9,2423.8,0.82486]
[1751395060402,0.82491,2423.8,2423.7,0.82489]
[1751395061402,1.53538,2423.9,2423.8,0.82489]
[1751395067307,0.7105,2423.9,2423.8,0.82489]
[1751395067507,0.82478,2424.2,2424.1,0.82479]
[1751395067707,1.75813245,2424.2,2424.1,0.82479]
[1751395068205,0.82482,2424.1,2424.0,0.8248]
[1751395068707,0.82482,2424.0,2423.9,1.54262]
[1751395068902,1.48002,2424.0,2423.9,1.54262]
[1751395072110,2.41546237,2424.0,2423.9,1.54262]
[1751395074113,0.93544237,2424.0,2423.9,1.54262]
[1751395074513,0.93544237,2424.0,2423.9,2.92252]
[1751395075314,1.49253,2424.3,2424.2,0.82475]
[1751395075514,2.42931383,2424.3,2424.2,0.82475]
[1751395076012,1.60458383,2424.3,2424.2,1.48055]
[1751395076212,0.93678383,2424.3,2424.2,1.48055]
[1751395077517,0.93678383,2424.3,2424.2,2.89275]
[1751395078812,0.6863,2424.7,2424.6,0.82462]
[1751395079315,1.4501,2425.1,2424.7,0.82455]
[1751395079316,0.82456,2424.8,2424.7,0.82455]
[1751395079511,0.6863,2424.9,2424.8,0.82455]
[1751395079707,0.6863,2424.9,2424.6,0.7028]
[1751395079918,0.82463,2424.6,2424.5,0.82463]
[1751395080319,0.82468,2424.4,2424.3,2.47279905]
[1751395080510,0.82468,2424.4,2424.3,1.64810905]
[1751395080717,0.82468,2424.4,2424.3,2.47282905]
[1751395080910,0.82472,2424.3,2424.2,1.64810905]
[1751395081117,0.82475,2424.2,2424.1,1.64810905]
[1751395081317,1.49985,2424.2,2424.1,1.64810905]
[1751395082220,0.82479,2424.1,2424.0,2.47290905]
[1751395082620,0.82479,2424.1,2424.0,0.8248]
[1751395082919,0.82479,2424.1,2424.0,2.47290905]
[1751395083120,1.49988,2424.2,2424.1,0.82479]
[1751395083521,0.82482,2424.1,2424.0,0.82479]
[1751395083714,0.6751,2424.2,2423.9,3.14563905]
[1751395083715,0.82482,2424.0,2423.9,3.14563905]
[1751395083914,0.82482,2424.0,2423.9,1.49753]
[1751395084315,0.82482,2424.0,2423.8,1.64810905]
[1751395084521,1.54045,2423.9,2423.8,2.47296905]
[1751395084722,0.7156,2423.9,2423.8,2.47296905]
[1751395086222,1.51489,2424.1,2424.0,0.82482]
[1751395086425,2.23049,2424.1,2424.0,0.82482]
[1751395086827,0.82482,2424.0,2423.9,4.5421307]
[1751395087122,2.23051,2424.1,2424.0,0.82482]
[1751395087426,0.82482,2424.0,2423.9,1.48783]
[1751395087921,0.82485,2423.9,2423.8,5.52727975]
[1751395088327,0.82485,2423.9,2423.8,0.82489]
[1751395089628,0.82489,2423.8,2423.7,2.47300905]
[1751395091129,0.82492,2423.7,2423.6,2.47304905]
[1751395091426,1.50812,2423.7,2423.6,1.64810905]
[1751395092023,1.50812,2423.7,2423.6,2.47306905]
[1751395092223,1.50812,2423.7,2423.6,1.64810905]
[1751395092424,1.50812,2423.7,2423.6,2.47306905]
[1751395092731,0.6832,2423.7,2423.6,2.47306905]
[1751395092925,1.50812,2423.7,2423.6,2.47306905]
[1751395093127,0.6832,2423.7,2423.6,2.47306905]
[1751395093429,0.82492,2423.8,2423.7,0.82492]
[1751395093630,0.82492,2423.8,2423.7,5.52643053]
[1751395094727,0.82492,2423.8,2423.7,3.8792207]
[1751395095232,0.82492,2423.8,2423.7,6.20123053]
[1751395095530,0.82492,2423.8,2423.7,1.49972]
[1751395095730,0.82492,2423.8,2423.7,3.14692983]
[1751395097130,0.82488,2423.9,2423.8,0.82486]
[1751395097331,0.82485,2424.0,2423.9,0.82483]
[1751395097529,0.6853,2424.1,2423.8,3.0543007]
[1751395097530,0.82485,2423.9,2423.8,3.8791707]
[1751395098734,0.82485,2423.9,2423.8,3.0543007]
[1751395098935,0.82489,2423.8,2423.7,1.64720983]
[1751395099135,0.82492,2423.7,2423.6,2.47213983]
[1751395099637,2.21461,2423.8,2423.7,0.82492]
[1751395102038,1.3897,2423.8,2423.7,0.82492]
[1751395102633,0.82485,2424.0,2423.9,0.82482]
[1751395103833,2.8007,2424.2,2423.8,5.1165007]
[1751395104034,1.4379,2424.2,2424.1,0.82479]
[1751395104338,1.54335,2424.2,2424.1,0.82479]
[1751395104539,1.54335,2424.2,2424.1,1.52749]
[1751395105231,0.82484,2424.0,2423.9,0.82481]
[1751395107035,0.82481,2424.1,2424.0,0.82479]
[1751395108437,0.6749,2424.5,2424.0,5.1163007]
[1751395108739,0.82464,2424.6,2424.5,0.82462]
[1751395109541,0.82465,2424.5,2424.4,0.82466]
[1751395109841,1.49476,2424.5,2424.4,0.82468]
[1751395110540,0.6701,2424.5,2424.4,0.82468]
[1751395110743,1.49475,2424.5,2424.4,0.82468]
[1751395111836,0.6701,2424.5,2424.1,3.01760983]
[1751395112044,0.82474,2424.3,2424.2,0.82472]
[1751395112242,0.82474,2424.3,2424.2,3.8790207]
[1751395114040,0.82475,2424.2,2424.1,6.21217053]
[1751395114245,1.52415,2424.2,2424.1,1.51066]
[1751395114447,1.52415,2424.2,2424.1,0.82476]
[1751395115541,0.82482,2424.1,2424.0,0.82479]
[1751395118247,1.52418,2424.2,2424.1,0.82479]
[1751395118644,0.6994,2424.2,2424.1,0.82479]
[1751395118849,1.52415,2424.2,2424.1,0.82479]
[1751395119347,0.6994,2424.2,2424.1,0.82479]
[1751395119941,0.7251,2424.4,2424.0,5.1163107]
[1751395120147,2.2644,2424.4,2424.3,0.82472]
[1751395124452,0.82472,2424.3,2424.2,3.8790407]
[1751395129059,0.82472,2424.3,2424.2,0.82474]
[1751395129954,0.82479,2424.2,2424.1,0.82476]
[1751395132257,0.82479,2424.2,2424.1,2.47196983]
[1751395133156,3.47524,2424.3,2424.0,2.47199983]
[1751395133157,0.82479,2424.1,2424.0,2.47199983]
[1751395133345,1.47999,2424.1,2424.0,0.82479]
[1751395133550,0.82482,2424.0,2423.9,2.47237735]
[1751395133852,0.82482,2424.0,2423.9,0.82484]
[1751395134755,1.48,2424.1,2424.0,0.82482]
[1751395134954,0.82477,2424.2,2424.1,0.82474]
[1751395135656,0.82479,2424.1,2424.0,5.52662805]
[1751395136451,0.82479,2424.1,2424.0,1.64753735]
[1751395136651,0.82482,2424.0,2423.9,1.64753735]
[1751395136853,1.51782,2424.0,2423.9,2.47238735]
[1751395141357,1.51782,2424.0,2423.9,5.52668805]
[1751395141556,0.82481,2424.1,2424.0,0.82482]
[1751395141754,0.82481,2424.1,2424.0,3.14164284]
[1751395141954,0.82481,2424.1,2424.0,2.31682284]
[1751395142158,0.82481,2424.1,2424.0,1.64842284]
[1751395142455,0.82482,2424.0,2423.9,2.47325284]
[1751395143361,0.82482,2424.0,2423.9,2.47327284]
[1751395144359,0.82482,2424.0,2423.9,1.64842284]
[1751395144662,0.82482,2424.0,2423.9,2.47327284]
[1751395148362,0.82482,2424.0,2423.9,1.64842284]
[1751395149859,0.686,2424.1,2423.8,2.47328284]
[1751395149860,0.82485,2423.9,2423.8,2.47328284]
[1751395150161,1.52085,2423.9,2423.8,1.64842284]
[1751395150364,1.52085,2423.9,2423.8,0.82489]
[1751395151569,0.82485,2423.9,2423.8,1.50739]
[1751395151963,0.82485,2423.9,2423.8,3.15581284]
[1751395153567,0.82485,2423.9,2423.8,1.50739]
[1751395155169,0.82485,2423.9,2423.8,4.5616907]
[1751395155570,0.82475,2424.3,2424.2,0.82473]
[1751395155767,0.82472,2424.4,2424.3,0.8247]
[1751395156975,0.82472,2424.3,2424.2,3.0543007]
[1751395157472,0.82472,2424.3,2424.2,3.8790507]
[1751395157773,0.82472,2424.3,2424.2,0.82475]
[1751395158274,0.82475,2424.2,2424.1,1.51126]
[1751395158674,0.82474,2424.3,2424.2,0.82472]
[1751395159676,0.82475,2424.2,2424.1,1.51126]
[1751395160377,0.82474,2424.3,2424.2,0.82472]
[1751395160571,0.82475,2424.2,2424.1,0.6865]
[1751395160771,0.82479,2424.1,2424.0,1.64842284]
[1751395160977,0.82482,2424.0,2423.9,1.64842284]
[1751395162378,0.82482,2424.0,2423.9,2.47327284]
[1751395162578,0.82482,2424.0,2423.9,2.47409722]
[1751395163880,0.82482,2424.0,2423.9,1.64859706]
[1751395164074,0.82482,2424.0,2423.9,2.47344706]
[1751395165677,0.82482,2424.0,2423.9,0.82485]
[1751395166078,0.82489,2423.9,2423.8,0.82486]
[1751395174374,2.86569,2424.1,2424.0,0.82482]
[1751395174682,0.82479,2424.1,2424.0,3.8791207]
[1751395175778,1.48578,2424.2,2424.1,0.82479]
[1751395176276,0.82474,2424.3,2424.2,0.82472]
[1751395176476,0.82474,2424.3,2424.2,3.8790207]
[1751395176682,0.8247,2424.4,2424.3,0.82472]
[1751395176881,1.50387,2424.5,2424.4,0.82468]
[1751395177282,0.6792,2424.5,2424.4,0.82468]
[1751395177482,0.6792,2424.5,2424.4,3.8789807]
[1751395178085,0.6717,2424.7,2424.6,0.82462]
[1751395178681,0.82458,2424.7,2424.6,0.82462]
[1751395179274,1.50378,2424.8,2424.7,0.82458]
[1751395180186,0.8246,2424.7,2424.6,0.82459]
[1751395180688,0.82465,2424.6,2424.5,0.82463]
[1751395181082,0.82468,2424.5,2424.4,0.82466]
[1751395181282,1.51548,2424.5,2424.4,0.82466]
[1751395182085,0.6908,2424.5,2424.4,0.82468]
[1751395182285,1.51547,2424.5,2424.4,0.82468]
[1751395183891,0.8247,2424.4,2424.3,0.8247]
[1751395184486,0.82472,2424.3,2424.2,3.8790307]
[1751395184888,0.82471,2424.4,2424.3,0.82471]
[1751395185886,0.82471,2424.4,2424.2,3.0543007]
[1751395185887,0.6908,2424.5,2424.4,0.82468]
[1751395186288,1.51545,2424.5,2424.4,0.82468]
[1751395187093,0.82471,2424.4,2424.3,0.82469]
[1751395190391,0.6908,2424.5,2424.2,3.0543007]
[1751395190592,0.6908,2424.5,2424.1,0.82474]
[1751395190593,0.82478,2424.2,2424.1,0.82474]
[1751395191496,0.82474,2424.3,2424.2,0.82472]
[1751395191996,2.92481,2424.4,2424.3,0.82472]
[1751395192192,1.52961,2424.4,2424.3,0.82472]
[1751395195998,1.52958,2424.4,2424.3,0.82472]
[1751395196696,0.6908,2424.5,2424.4,0.82468]
[1751395197098,1.51545,2424.5,2424.4,0.82468]
[1751395200405,1.53081,2424.7,2424.6,0.82462]
[1751395205105,0.82465,2424.6,2424.5,0.82463]
[1751395206001,0.8246,2424.7,2424.6,0.82462]
[1751395206508,1.52125,2424.8,2424.7,0.82458]
[1751395206900,0.6967,2424.8,2424.7,1.49338]
[1751395207101,1.52125,2424.8,2424.7,1.49338]
[1751395207404,1.52125,2424.8,2424.7,0.82458]
[1751395208010,0.82462,2424.6,2424.5,3.14199706]
[1751395208507,0.82462,2424.6,2424.5,2.47319706]
[1751395209200,0.82462,2424.6,2424.5,0.8246]
[1751395210402,0.82464,2424.6,2424.5,0.82462]
[1751395211006,0.82465,2424.5,2424.4,1.64859706]
[1751395211205,3.7110007,2424.5,2424.3,1.64859706]
[1751395211403,0.82472,2424.3,2424.2,1.64859706]
[1751395213009,0.82472,2424.3,2424.2,2.47334706]
[1751395214208,0.82472,2424.3,2424.2,1.64859706]
[1751395214609,0.82472,2424.3,2424.2,2.47334706]
[1751395215405,2.21981,2424.4,2424.3,0.82472]
[1751395215607,0.82471,2424.4,2424.3,0.82472]
[1751395217511,0.82471,2424.4,2424.3,2.47331706]
[1751395218110,0.82471,2424.4,2424.3,1.64859706]
[1751395218503,2.23651,2424.4,2424.3,1.64859706]
[1751395220010,0.82472,2424.3,2424.2,2.47332706]
[1751395221414,0.82472,2424.3,2424.2,0.82473]
[1751395221616,2.23651,2424.4,2424.3,0.82472]
[1751395221813,0.82471,2424.4,2424.3,0.82472]
[1751395222812,0.82472,2424.3,2424.2,3.15838375]
[1751395223008,0.82472,2424.3,2424.2,1.64825375]
[1751395223405,0.82472,2424.3,2424.2,2.47300375]
[1751395223607,0.82471,2424.4,2424.3,0.82468]
[1751395225313,0.82472,2424.3,2424.2,2.47298375]
[1751395225610,0.82472,2424.3,2424.2,1.64825375]
[1751395226117,0.82472,2424.3,2424.2,0.82475]
[1751395227917,4.5200108,2424.8,2424.2,5.1161807]
[1751395228113,0.82465,2424.6,2424.5,3.8789107]
[1751395229716,0.82465,2424.6,2424.5,0.82461]
[1751395229914,0.82465,2424.5,2424.4,1.50286]
[1751395232017,0.82465,2424.5,2424.4,0.6782]
[1751395232224,0.82468,2424.4,2424.3,3.13026375]
[1751395232922,0.82468,2424.4,2424.3,2.30555375]
[1751395233724,0.82468,2424.4,2424.3,2.47297375]
[1751395234021,0.82468,2424.4,2424.3,1.64825375]
[1751395234524,0.82472,2424.3,2424.2,2.47300375]
[1751395234723,1.52442,2424.3,2424.2,2.47300375]
[1751395235419,1.52442,2424.3,2424.2,1.64825375]
[1751395237823,1.52442,2424.3,2424.2,2.47300375]
[1751395238023,1.52442,2424.3,2424.2,1.64825375]
[1751395238219,1.52442,2424.3,2424.2,0.82475]
[1751395238421,0.82475,2424.2,2424.1,3.16289722]
[1751395239524,0.82475,2424.2,2424.1,3.98765722]
[1751395240617,0.82475,2424.3,2424.2,0.82475]
[1751395241120,0.82475,2424.3,2424.2,3.29884722]
[1751395242526,0.82475,2424.3,2424.2,2.47409722]
[1751395242926,1.50075,2424.3,2424.2,2.47409722]
[1751395244230,1.50075,2424.3,2424.2,1.64911571]
[1751395244931,0.82475,2424.2,2424.1,1.64911571]
[1751395245229,3.8790507,2424.2,2424.1,1.64911571]
[1751395246327,3.8790507,2424.2,2424.1,2.47390571]
[1751395246523,3.8790507,2424.2,2424.1,1.64911571]
[1751395247125,3.8790507,2424.2,2424.1,2.47390571]
[1751395248031,3.8790507,2424.2,2424.1,1.64911571]
[1751395248624,0.82479,2424.1,2424.0,2.47393571]
[1751395249223,0.82479,2424.1,2424.0,0.82482]
[1751395249630,0.82479,2424.1,2424.0,2.18762]
[1751395251430,0.82479,2424.1,2424.0,3.83600362]
[1751395251732,0.82479,2424.1,2424.0,2.18762]
[1751395252332,0.82479,2424.1,2424.0,0.82482]
[1751395252633,0.82482,2424.0,2423.9,3.29892722]
[1751395257436,0.82482,2424.0,2423.9,2.47281039]
[1751395259431,0.82482,2424.0,2423.9,1.64798039]
[1751395259739,0.82485,2423.9,2423.8,1.64798039]
[1751395259939,2.7056,2423.9,2423.6,1.64798039]
[1751395260137,3.8792207,2423.7,2423.6,1.64798039]
[1751395260335,0.82496,2423.6,2423.5,1.64798039]
[1751395260540,5.1924607,2423.6,2423.5,1.64798039]
[1751395261942,0.82499,2423.5,2423.4,1.64798039]
[1751395262239,1.52749,2423.5,2423.4,1.64798039]
[1751395262744,1.52749,2423.5,2423.4,2.47300039]
[1751395263129,0.7025,2423.5,2423.4,2.47300039]
[1751395263641,1.52749,2423.5,2423.4,3.19360039]
[1751395263831,1.52749,2423.5,2423.4,2.47300039]
[1751395264443,1.52749,2423.5,2423.4,1.64798039]
[1751395264740,1.52749,2423.5,2423.4,2.47300039]
[1751395264940,1.52749,2423.5,2423.4,1.64798039]
[1751395265244,1.52749,2423.5,2423.4,2.47300039]
[1751395266045,1.52749,2423.5,2423.4,1.64798039]
[1751395266241,1.52749,2423.5,2423.4,2.47300039]
[1751395266542,1.52749,2423.5,2423.4,0.82502]
[1751395267153,0.82502,2423.4,2423.3,1.64798039]
[1751395267446,0.82509,2423.2,2423.1,2.47309039]
[1751395267948,0.82509,2423.2,2423.1,0.82511]
[1751395268347,0.82507,2423.4,2423.3,0.82506]
[1751395269347,2.06265,2423.3,2423.0,3.7408007]
[1751395269549,0.82513,2423.1,2423.0,4.5659107]
[1751395269942,0.82513,2423.1,2423.0,1.51161]
[1751395271047,5.8174807,2423.6,2423.1,0.82513]
[1751395271344,0.82507,2423.4,2423.3,0.82503]
[1751395271550,0.82501,2423.5,2423.4,0.82502]
[1751395271752,0.82501,2423.5,2423.4,3.8793207]
[1751395271954,0.6842,2423.8,2423.4,3.0543007]
[1751395272257,0.8249,2423.8,2423.7,0.82492]
[1751395272452,0.82488,2423.9,2423.8,0.82484]
[1751395272655,0.82481,2424.1,2424.0,0.82478]
[1751395272954,0.82478,2424.2,2424.1,0.82477]
[1751395273157,0.82478,2424.2,2424.1,1.53427]
[1751395275861,0.82478,2424.2,2424.1,0.7095]
[1751395276067,0.82478,2424.2,2424.1,1.53429]
[1751395276260,0.82478,2424.2,2424.1,0.7095]
[1751395276963,0.82482,2424.0,2423.9,0.82485]
[1751395277560,0.82489,2423.9,2423.8,0.82486]
[1751395277758,0.82492,2423.8,2423.6,0.7125]
[1751395277961,0.82492,2423.7,2423.6,0.7125]
[1751395278564,0.82492,2423.7,2423.6,0.82493]
[1751395280264,0.82499,2423.6,2423.5,0.82496]
[1751395280563,0.82495,2423.7,2423.6,0.82492]
[1751395281059,0.7174,2423.9,2423.8,0.82489]
[1751395281259,0.82485,2424.0,2423.9,0.82482]
[1751395283959,5.1163207,2424.1,2423.7,0.7016]
[1751395284265,0.82496,2423.6,2423.5,2.47294039]
[1751395286064,0.82496,2423.6,2423.5,2.47297039]
[1751395286269,0.82496,2423.6,2423.5,0.82499]
[1751395287161,0.82496,2423.6,2423.5,2.47297039]
[1751395288074,0.82496,2423.6,2423.5,0.82499]
[1751395293276,0.82496,2423.7,2423.6,0.82492]
[1751395293474,0.669,2423.9,2423.6,3.0543007]
[1751395293669,0.82486,2424.0,2423.9,0.82483]
[1751395294070,0.82486,2424.0,2423.9,1.50523]
[1751395294571,0.82486,2424.0,2423.9,0.6804]
[1751395294870,0.82489,2423.9,2423.8,0.82488]
[1751395302184,0.82489,2423.8,2423.7,2.87969]
[1751395306283,0.82486,2424.0,2423.9,0.82482]
[1751395306479,0.82481,2424.1,2424.0,0.82479]
[1751395306781,0.82481,2424.1,2424.0,2.25309]
[1751395306980,0.82481,2424.1,2424.0,2.92439]
[1751395307777,0.724,2424.3,2424.0,2.0996]
[1751395307978,0.82484,2424.1,2424.0,2.92443]
[1751395310583,0.82484,2424.1,2424.0,1.49618]
[1751395310975,2.78595,2424.3,2423.9,1.64798039]
[1751395310976,0.82488,2424.0,2423.9,1.64798039]
[1751395311182,0.82491,2423.9,2423.8,1.64798039]
[1751395311382,0.82495,2423.8,2423.7,1.64798039]
[1751395311685,0.82501,2423.6,2423.5,0.82505]
[1751395312686,0.82505,2423.5,2423.4,2.47304039]
[1751395312884,1.54105,2423.5,2423.4,2.47304039]
[1751395313888,1.54105,2423.5,2423.4,1.64798039]
[1751395315889,0.82508,2423.4,2423.3,1.64798039]
[1751395316289,0.82512,2423.3,2423.2,2.47310039]
[1751395317987,0.82512,2423.3,2423.2,1.64798039]
[1751395318186,3.8794207,2423.3,2423.2,1.64798039]
[1751395318391,0.82515,2423.2,2423.1,1.64798039]
[1751395318591,0.82515,2423.2,2422.8,1.64798039]
[1751395318592,0.82525,2422.9,2422.8,1.64798039]
[1751395318787,0.82532,2422.7,2422.6,1.64798039]
[1751395319180,0.82535,2422.6,2422.5,2.47337039]
[1751395319384,1.48985,2422.6,2422.5,2.47337039]
[1751395319691,1.48985,2422.6,2422.5,0.82539]
[1751395320092,0.6645,2422.6,2422.5,0.82539]
[1751395320493,1.48985,2422.6,2422.5,0.82539]
[1751395321292,0.6645,2422.6,2422.5,0.82539]
[1751395321796,1.48985,2422.6,2422.5,0.82539]
[1751395321995,0.6645,2422.6,2422.5,0.82539]
[1751395322695,1.48985,2422.6,2422.5,0.82539]
[1751395322996,0.6645,2422.6,2422.5,0.82539]
[1751395323792,1.48985,2422.6,2422.5,0.82539]
[1751395323998,0.6645,2422.6,2422.5,0.82539]
[1751395324396,1.48985,2422.6,2422.5,0.82539]
[1751395324597,5.1514007,2422.6,2422.2,1.64798039]
[1751395324800,5.9767907,2422.6,2422.5,0.82539]
[1751395325590,2.92249,2422.6,2422.5,0.82539]
[1751395326699,3.64299,2422.6,2422.5,0.82539]
[1751395326899,0.82541,2422.5,2422.4,0.8254]
[1751395327199,1.3926,2422.5,2422.4,0.8254]
[1751395327594,2.21799,2422.5,2422.4,0.8254]
[1751395328697,2.90889,2422.5,2422.4,0.8254]
[1751395329002,2.0835,2422.5,2422.4,0.8254]
[1751395329504,2.90889,2422.5,2422.4,0.8254]
[1751395329802,1.3926,2422.5,2422.4,0.8254]
[1751395330004,2.0835,2422.5,2422.4,0.8254]
[1751395330302,2.90889,2422.5,2422.4,0.8254]
[1751395330599,2.0835,2422.5,2422.4,0.8254]
[1751395330803,0.6645,2422.6,2422.5,0.82539]
[1751395330997,1.48985,2422.6,2422.5,0.82539]
[1751395331903,0.6645,2422.6,2422.5,0.82539]
[1751395332104,0.6909,2422.9,2422.8,0.82529]
[1751395332607,2.9573,2423.1,2423.0,0.82522]
[1751395332799,0.7111,2423.1,2423.0,0.82522]
[1751395333307,1.53628,2423.1,2423.0,0.82522]
[1751395333609,0.82529,2422.9,2422.8,0.82526]
[1751395335717,2.24625,2423.0,2422.9,0.82525]
[1751395336001,1.421,2423.0,2422.7,3.0543007]
[1751395336306,0.82529,2422.9,2422.8,0.82526]
[1751395336806,0.82524,2423.0,2422.9,0.82525]
[1751395337705,0.82531,2422.8,2422.7,0.82528]
[1751395338509,0.82531,2422.8,2422.6,0.82533]
[1751395338510,0.82535,2422.7,2422.6,0.82533]
[1751395338707,2.6428,2422.7,2422.3,2.78575]
[1751395338909,0.82542,2422.5,2422.4,0.82539]
[1751395339401,2.13587,2422.6,2422.5,0.82539]
[1751395341105,0.82542,2422.5,2422.4,0.82539]
[1751395341407,0.82542,2422.5,2422.2,2.06368]
[1751395341408,0.82551,2422.3,2422.2,0.82547]
[1751395341609,0.82554,2422.2,2422.1,0.8255]
[1751395341814,1.49414,2422.2,2422.1,0.8255]
[1751395342006,1.49409,2422.2,2422.1,0.8255]
[1751395344614,0.6686,2422.2,2422.1,0.8255]
[1751395345609,0.82546,2422.4,2422.3,0.82543]
[1751395347313,0.6677,2422.5,2422.4,0.82542]
[1751395347615,14.9368608,2423.0,2422.7,2.06327]
[1751395347816,15.6210608,2423.0,2422.9,0.82525]
[1751395348012,2.4586308,2423.0,2422.9,0.82525]
[1751395348220,3.2838208,2423.1,2423.0,0.82522]
[1751395348408,0.82519,2423.1,2423.0,0.82522]
[1751395349918,0.82525,2423.0,2422.9,0.82522]
[1751395350119,0.82529,2422.9,2422.8,0.82527]
[1751395351208,0.82524,2423.0,2422.9,0.82522]
[1751395351609,2.2425,2423.1,2423.0,0.82522]
[1751395351812,0.8252,2423.1,2423.0,0.82522]
[1751395352011,2.4586308,2423.2,2423.1,0.82518]
[1751395352220,2.4586308,2423.2,2423.1,3.8794807]
[1751395352918,2.4586308,2423.2,2423.1,6.0166807]
[1751395353316,2.4586308,2423.2,2423.1,1.54868]
[1751395354217,3.2837308,2423.4,2423.1,0.7235]
[1751395354513,3.2837308,2423.4,2423.3,0.82512]
[1751395354713,0.8251,2423.4,2423.1,0.7235]
[1751395354921,0.82514,2423.3,2423.2,0.82512]